bitfinex/quotes_ETHUSD_20260120
["timestamp","ask_amount","ask_price","bid_price","bid_amount"]
[1768932795030,0.001,3002.5,3001.9,10.55679145]
[1768932797723,0.001,3002.5,3002.0,10.55679145]
[1768932799923,11.7265375,3003.0,3002.2,5.24596714]
[1768932800126,11.1805375,3002.8,3001.8,10.55879145]
[1768932800432,2.19077251,3002.7,3002.1,10.55679145]
[1768932800631,0.546,3002.7,3002.1,10.55679145]
[1768932800853,11.1805375,3002.8,3002.1,10.55679145]
[1768932801177,11.7265375,3002.8,3002.1,10.55679145]
[1768932801543,11.1805375,3002.8,3002.1,10.55679145]
[1768932801750,11.1805375,3002.8,3002.4,5.24596714]
[1768932802053,3.81,3003.2,3002.7,10.55679145]
[1768932802372,0.4356,3003.2,3002.7,10.55679145]
[1768932803833,11.7265375,3003.3,3002.7,10.55679145]
[1768932804247,15.05621825,3003.3,3002.7,10.55679145]
[1768932804451,11.7265375,3003.3,3002.7,10.55679145]
[1768932805548,11.1805375,3003.3,3002.7,10.55679145]
[1768932805849,0.3723927,3003.3,3002.4,0.547]
[1768932806031,11.5529302,3003.3,3002.5,10.94456938]
[1768932806238,11.5529302,3003.3,3002.5,10.55679145]
[1768932806953,11.1805375,3003.2,3002.5,10.55679145]
[1768932807149,11.1805375,3003.0,3002.2,10.55679145]
[1768932807355,11.1805375,3003.0,3002.2,11.10379145]
[1768932808335,11.1805375,3003.0,3002.3,10.55679145]
[1768932808536,11.1805375,3003.0,3002.3,12.00045713]
[1768932809565,11.1805375,3003.2,3002.3,12.00045713]
[1768932810680,0.546,3003.2,3002.4,10.55679145]
[1768932810842,0.546,3003.2,3002.6,10.55679145]
[1768932812447,11.1805375,3003.1,3002.4,10.55679145]
[1768932813689,11.1805375,3003.5,3002.4,10.55679145]
[1768932813841,0.546,3003.4,3002.6,10.55679145]
[1768932814940,11.1805375,3003.3,3002.5,1.38875207]
[1768932815172,11.1805375,3003.3,3002.3,10.55679145]
[1768932815591,11.1805375,3003.3,3002.4,0.002]
[1768932815821,11.1805375,3003.3,3002.4,10.55879145]
[1768932815955,0.001,3002.9,3002.4,10.55879145]
[1768932816142,0.001,3002.9,3002.5,11.6673706]
[1768932816743,0.001,3002.9,3002.5,1.11057915]
[1768932817042,0.001,3002.9,3002.4,0.002]
[1768932817468,0.001,3002.9,3002.4,10.55879145]
[1768932819482,1.61879582,3005.4,3003.8,3.80999999]
[1768932819711,10.2,3007.3,3002.5,2.002]
[1768932819712,11.1805375,3006.8,3005.5,10.55679145]
[1768932820010,7.01265705,3007.6,3005.5,10.55679145]
[1768932820011,0.020942,3006.3,3005.6,0.547]
[1768932820405,0.091609,3005.9,3005.8,17.615928]
[1768932820570,0.546,3006.9,3005.2,10.55679145]
[1768932820571,0.33971175,3006.5,3005.6,0.445182]
[1768932820772,0.089448,3005.7,3005.6,5.290952]
[1768932821296,0.089448,3005.7,3005.6,4.89445672]
[1768932823026,0.089448,3005.7,3005.6,1.56449221]
[1768932824206,0.070667,3005.5,3005.0,11.10379145]
[1768932824978,0.070667,3005.5,3005.0,10.55679145]
[1768932825206,0.32051814,3005.9,3005.4,1.545712]
[1768932825408,0.53552028,3005.8,3004.8,11.43986764]
[1768932825706,0.53552028,3005.8,3004.6,11.43986764]
[1768932826082,0.51429986,3005.8,3004.6,11.43986764]
[1768932826408,0.57487178,3005.6,3004.6,11.43986764]
[1768932826615,0.546,3005.5,3004.6,11.43986764]
[1768932826794,1.12087178,3005.5,3004.6,11.43986764]
[1768932827314,1.12087178,3005.5,3004.7,11.43986764]
[1768932827515,3.3263128,3006.4,3004.7,11.43986764]
[1768932827516,1.05155313,3006.9,3005.1,11.43986764]
[1768932827814,0.546,3007.0,3005.5,11.61349112]
[1768932828014,0.546,3007.0,3005.7,11.43986764]
[1768932828215,0.63509976,3007.5,3005.7,12.65591675]
[1768932828382,0.546,3007.2,3005.7,12.65591675]
[1768932828587,0.02122042,3007.1,3005.9,11.43986764]
[1768932829014,0.546,3007.2,3005.9,11.43986764]
[1768932829311,3.32546307,3007.1,3005.9,11.43986764]
[1768932829512,0.38714631,3007.0,3006.0,11.43986764]
[1768932829690,0.02122042,3006.9,3006.0,11.43986764]
[1768932829897,0.38714631,3007.0,3006.0,11.43986764]
[1768932830491,6.6491572,3007.9,3006.0,11.43986764]
[1768932830708,0.546,3007.8,3006.0,11.43986764]
[1768932830904,3.3245786,3007.9,3006.0,11.43986764]
[1768932831096,0.546,3007.8,3006.0,11.43986764]
[1768932831417,0.38705786,3007.7,3006.5,11.43986764]
[1768932831621,0.38705786,3007.7,3006.6,11.43986764]
[1768932831808,3.71189535,3007.7,3006.6,11.43986764]
[1768932832011,0.02122042,3007.6,3006.6,11.43986764]
[1768932832392,7.03673284,3007.7,3006.6,11.43986764]
[1768932832588,0.75827328,3007.6,3006.6,11.43986764]
[1768932834018,4.08322108,3007.6,3006.6,11.43986764]
[1768932835137,7.40816888,3007.6,3006.6,11.43986764]
[1768932835501,4.08322108,3007.6,3006.6,11.43986764]
[1768932835902,0.546,3007.5,3006.6,11.43986764]
[1768932836116,0.46292211,3007.4,3006.6,11.43986764]
[1768932836931,1.60699247,3007.4,3006.6,11.43986764]
[1768932837507,1.60699247,3007.4,3006.6,11.26814569]
[1768932837707,3.32524191,3007.3,3006.6,11.18017822]
[1768932837942,3.32524191,3007.3,3006.6,11.0922191]
[1768932838242,0.82573718,3007.2,3006.6,10.85900213]
[1768932838537,0.82573718,3007.2,3006.6,10.78645914]
[1768932838717,0.546,3007.1,3006.6,10.78645914]
[1768932839413,0.546,3007.1,3006.1,11.43986764]
[1768932839732,1.37173718,3007.2,3006.2,11.43986764]
[1768932839924,3.87136645,3007.2,3006.2,11.43986764]
[1768932840115,0.546,3007.2,3006.2,11.43986764]
[1768932840315,0.546,3007.2,3006.3,11.43986764]
[1768932840614,0.546,3007.1,3006.3,11.43986764]
[1768932841112,0.546,3007.2,3006.3,11.43986764]
[1768932841820,3.32546307,3007.1,3006.3,11.43986764]
[1768932842126,0.71968267,3007.0,3006.3,11.43986764]
[1768932842331,0.54610548,3007.0,3006.3,11.43986764]
[1768932843619,0.02122042,3006.9,3006.3,11.43986764]
[1768932843820,6.65158972,3006.8,3006.0,11.43986764]
[1768932844053,2.17253661,3006.6,3005.1,11.43986764]
[1768932844254,0.546,3006.5,3005.3,11.43986764]
[1768932844553,0.66515897,3006.7,3005.3,11.43986764]
[1768932844754,0.546,3006.6,3005.5,11.43986764]
[1768932844958,0.546,3006.6,3005.7,11.43986764]
[1768932845264,0.546,3006.6,3005.9,11.43986764]
[1768932846169,0.45371128,3006.5,3005.9,11.43986764]
[1768932846327,0.546,3006.6,3005.9,11.43986764]
[1768932846654,0.546,3006.6,3006.5,0.12927134]
[1768932846868,0.546,3006.6,3006.0,11.43986764]
[1768932847164,0.38719132,3006.5,3006.0,11.43986764]
[1768932847325,0.546,3006.6,3006.0,11.43986764]
[1768932849462,3.87202868,3006.6,3006.0,11.43986764]
[1768932849691,0.546,3006.6,3006.0,11.43986764]
[1768932850236,3.87201804,3006.6,3006.0,11.43986764]
[1768932851768,9.71074648,3006.6,3005.7,11.43986764]
[1768932851930,0.97107465,3006.5,3005.7,11.43986764]
[1768932852135,3.326348,3006.3,3005.7,11.43986764]
[1768932852335,0.546,3006.2,3005.7,11.43986764]
[1768932852949,0.546,3006.2,3005.5,11.43986764]
[1768932853167,0.3872348,3006.1,3005.5,11.43986764]
[1768932855475,0.3872348,3006.1,3005.8,0.002]
[1768932860166,0.546,3006.0,3005.6,11.72183354]
[1768932861876,0.546,3006.0,3005.6,10.72297557]
[1768932862287,0.546,3006.0,3005.6,9.7241176]
[1768932862648,0.546,3006.0,3005.6,8.72525963]
[1768932862985,6.0489936,3006.9,3005.6,8.72525963]
[1768932863157,1.20550991,3006.8,3005.6,8.72525963]
[1768932863364,7.3069323,3006.8,3005.6,8.72525963]
[1768932864257,0.65950991,3006.8,3005.6,8.72525963]
[1768932864446,6.69921648,3007.0,3005.6,8.72525963]
[1768932864447,0.546,3006.7,3005.6,8.72525963]
[1768932869680,0.546,3006.7,3005.8,11.72183354]
[1768932870272,0.001,3006.8,3005.8,12.26883354]
[1768932871361,0.001,3006.8,3005.8,11.72183354]
[1768932871362,6.12550742,3006.7,3005.8,11.72183354]
[1768932871584,7.07073883,3006.6,3005.8,11.72183354]
[1768932872192,0.94523141,3006.6,3005.9,11.72183354]
[1768932872398,0.001,3006.8,3005.9,11.72183354]
[1768932872591,9.42729752,3006.8,3005.9,11.72183354]
[1768932872900,6.1005005,3006.7,3005.9,11.72183354]
[1768932874779,6.05138714,3006.6,3005.9,11.72183354]
[1768932875174,6.05238714,3006.8,3005.9,11.72183354]
[1768932875374,0.99231241,3006.7,3005.9,11.72183354]
[1768932876578,10.32172496,3006.7,3005.9,11.72183354]
[1768932876989,6.99581906,3006.7,3005.9,11.72183354]
[1768932880833,0.001,3006.4,3005.9,11.72183354]
[1768932881108,0.001,3006.8,3006.0,11.72183354]
[1768932881320,0.001,3006.8,3006.2,11.72183354]
[1768932883375,0.53717706,3007.0,3006.2,11.72183354]
[1768932884510,5.88901713,3007.1,3006.2,11.72183354]
[1768932884691,0.545,3007.0,3006.2,11.72183354]
[1768932886403,5.73865716,3006.9,3006.2,11.72183354]
[1768932886607,0.62836572,3006.9,3006.2,11.72183354]
[1768932887487,6.34646611,3006.9,3006.2,11.72183354]
[1768932888221,0.62836572,3006.9,3006.2,11.72183354]
[1768932888386,0.545,3007.0,3006.2,11.72183354]
[1768932890891,5.69777157,3007.1,3006.3,11.42207176]
[1768932891101,0.545,3007.0,3006.3,11.42207176]
[1768932891321,0.545,3007.0,3006.3,13.4200629]
[1768932892288,0.545,3007.0,3006.3,11.42207176]
[1768932892520,0.545,3007.1,3006.3,11.42207176]
[1768932892889,0.001,3006.8,3006.3,11.42207176]
[1768932898794,5.50798256,3006.8,3006.3,11.42207176]
[1768932899327,0.001,3006.8,3006.3,11.42207176]
[1768932900431,6.02306924,3006.8,3006.3,11.42207176]
[1768932900733,0.001,3006.8,3006.4,11.42207176]
[1768932902132,5.454755,3006.8,3006.4,11.42207176]
[1768932902330,0.001,3006.8,3006.4,11.42207176]
[1768932902532,5.43761015,3006.8,3006.2,11.42207176]
[1768932902707,6.03699321,3006.7,3006.2,11.42207176]
[1768932902914,0.60038306,3006.7,3006.2,11.42207176]
[1768932903113,0.546,3006.8,3006.2,11.42207176]
[1768932903314,0.546,3006.8,3006.5,11.42207176]
[1768932903522,0.001,3006.8,3006.5,11.42207176]
[1768932905122,5.23138432,3008.0,3006.7,11.42207176]
[1768932905335,5.38609893,3007.5,3006.7,11.42207176]
[1768932905536,5.41934893,3007.3,3006.6,0.002]
[1768932906034,5.41934893,3007.3,3006.6,11.42407176]
[1768932907525,0.545,3007.2,3006.6,11.42407176]
[1768932908039,5.38679698,3007.0,3006.6,0.002]
[1768932908255,5.38679698,3006.9,3006.6,0.002]
[1768932908737,5.38679698,3006.9,3006.3,0.002]
[1768932908738,5.3708132,3006.7,3006.3,0.002]
[1768932908933,5.3708132,3006.7,3006.0,11.42207176]
[1768932909104,5.3668132,3006.5,3006.0,11.42207176]
[1768932911717,5.86465909,3006.4,3005.7,11.42207176]
[1768932912324,0.545,3006.4,3005.7,11.42207176]
[1768932912923,0.545,3006.4,3006.0,5.23138432]
[1768932913155,0.545,3006.5,3006.1,11.42207176]
[1768932913365,5.83451522,3006.5,3005.9,11.42207176]
[1768932915454,6.41796674,3006.5,3005.9,11.42207176]
[1768932916256,4.45458836,3006.5,3005.9,11.42207176]
[1768932916458,5.23066769,3006.4,3005.5,12.7239698]
[1768932916662,5.23066769,3006.4,3005.7,12.1769698]
[1768932917553,1.12845152,3006.5,3005.9,12.1769698]
[1768932917754,5.21647162,3006.6,3005.9,12.1769698]
[1768932917968,3.92182955,3007.2,3006.3,5.23138432]
[1768932918142,0.545,3007.1,3006.4,12.1769698]
[1768932918492,0.001,3007.0,3006.4,12.1769698]
[1768932918788,0.001,3007.0,3006.2,0.002]
[1768932918789,5.20355178,3007.0,3006.2,0.002]
[1768932918929,5.20255178,3006.8,3006.2,0.002]
[1768932919131,5.74755178,3006.7,3006.2,0.002]
[1768932919867,5.1886501,3006.6,3006.2,0.002]
[1768932920052,5.1886501,3006.4,3005.7,12.1749739]
[1768932920233,0.545,3006.3,3005.7,12.1749739]
[1768932920475,0.57336501,3006.2,3005.7,12.1749739]
[1768932921346,5.1769022,3006.1,3005.3,12.1769698]
[1768932922997,5.14990298,3006.0,3005.1,12.1769698]
[1768932923269,5.69490298,3005.9,3005.1,12.1769698]
[1768932923447,6.03878435,3005.8,3005.1,12.1769698]
[1768932924234,0.9021598,3005.8,3005.1,12.1769698]
[1768932924463,5.12366736,3006.0,3005.1,12.1769698]
[1768932924632,5.66866736,3005.9,3005.1,12.1769698]
[1768932925065,5.12366736,3005.8,3005.1,12.1769698]
[1768932925375,8.45057276,3005.8,3005.0,12.1789698]
[1768932925575,6.2007069,3005.7,3005.0,12.1789698]
[1768932926138,1.09000517,3005.7,3005.0,12.1789698]
[1768932926336,6.18791219,3005.7,3005.0,12.1789698]
[1768932926567,5.82362666,3005.6,3005.0,0.002]
[1768932926868,0.545,3005.5,3005.0,0.002]
[1768932928173,0.545,3005.5,3005.0,12.1789698]
[1768932928337,5.47021635,3005.5,3005.0,0.002]
[1768932928559,5.8775242,3005.4,3005.0,0.002]
[1768932928880,5.8775242,3005.4,3004.6,12.1789698]
[1768932929261,0.95230785,3005.4,3004.6,12.1789698]
[1768932929585,0.545,3005.4,3004.6,12.1789698]
[1768932929984,0.545,3005.4,3004.8,12.1769698]
[1768932930357,4.75435636,3006.0,3005.0,12.1769698]
[1768932930553,4.75435636,3006.0,3004.9,5.23138432]
[1768932930554,0.545,3005.9,3005.2,12.1769698]
[1768932930978,0.545,3005.9,3005.3,12.1789698]
[1768932931181,0.52993564,3005.8,3005.3,12.1789698]
[1768932931702,0.52993564,3005.8,3005.4,12.19362223]
[1768932931860,0.545,3005.8,3005.4,12.1769698]
[1768932932262,0.545,3005.8,3005.3,0.002]
[1768932932872,5.13447616,3005.8,3005.3,0.002]
[1768932933502,10.36586048,3005.8,3005.0,12.1789698]
[1768932933806,1.70204425,3005.7,3005.0,12.1789698]
[1768932934104,4.5064697,3005.7,3005.0,12.1789698]
[1768932935301,7.67519541,3005.9,3005.0,12.1789698]
[1768932935499,0.001,3005.9,3005.1,12.1769698]
[1768932935662,0.001,3005.9,3005.3,12.1769698]
[1768932935858,0.001,3005.9,3005.0,5.23338432]
[1768932935859,4.34735001,3005.8,3005.0,12.1789698]
[1768932936277,5.23238432,3005.9,3005.0,12.1789698]
[1768932936819,4.2699688,3005.9,3005.0,12.1789698]
[1768932937322,4.2699688,3005.9,3005.2,12.1769698]
[1768932937323,0.001,3005.9,3005.2,12.1769698]
[1768932938424,0.001,3005.9,3005.0,0.002]
[1768932938425,4.11513245,3005.8,3005.0,12.1789698]
[1768932939728,1.66322495,3005.9,3005.0,12.1789698]
[1768932939917,0.545,3005.8,3005.2,12.1769698]
[1768932940118,0.545,3005.7,3005.2,12.1769698]
[1768932940837,0.001,3005.9,3005.2,12.1769698]
[1768932941006,3.96592693,3006.8,3005.8,12.1769698]
[1768932941214,0.94159269,3006.7,3005.8,12.1769698]
[1768932941805,0.545,3006.6,3005.8,3.32687209]
[1768932942034,0.545,3006.6,3005.9,12.1769698]
[1768932943416,3.74682339,3007.4,3006.2,12.1769698]
[1768932943615,1.44282077,3007.3,3006.4,10.49586044]
[1768932944218,0.545,3007.2,3006.4,10.49586044]
[1768932944622,0.02122042,3007.1,3006.4,10.49586044]
[1768932945335,0.001,3007.0,3006.4,10.49586044]
[1768932946312,5.23176836,3006.6,3005.5,9.81716609]
[1768932946537,5.23176836,3006.4,3005.6,10.47253463]
[1768932946719,0.33264631,3006.9,3005.8,5.23176836]
[1768932946933,0.33264631,3006.9,3005.9,10.47253463]
[1768932947121,0.545,3006.8,3005.9,10.47253463]
[1768932947326,0.545,3006.8,3006.0,10.47253463]
[1768932948026,0.001,3007.0,3006.1,10.47253463]
[1768932948343,0.001,3007.0,3006.3,10.47253463]
[1768932948644,0.001,3007.0,3006.1,10.47253463]
[1768932949146,0.001,3007.0,3006.0,8.55844039]
[1768932949147,0.001,3007.0,3006.3,10.47253463]
[1768932951139,8.36596062,3007.0,3006.3,10.47253463]
[1768932951647,0.001,3007.0,3006.3,10.47253463]
[1768932951843,1.2182276,3007.0,3006.3,10.47253463]
[1768932952534,4.54382159,3007.0,3006.3,10.47253463]
[1768932952732,7.54924087,3007.0,3006.3,10.47253463]
[1768932953721,2.94270923,3006.9,3005.9,10.47253463]
[1768932953931,2.96392965,3006.9,3005.9,10.47253463]
[1768932954123,4.54922059,3006.8,3005.9,10.47253463]
[1768932954323,0.02122042,3006.7,3005.9,10.47253463]
[1768932954866,0.02122042,3006.7,3005.7,10.47253463]
[1768932954867,5.23176836,3006.4,3005.7,10.47253463]
[1768932955040,0.81123682,3006.3,3005.7,10.47253463]
[1768932955222,2.8805998,3006.4,3005.7,10.47253463]
[1768932956035,3.36433306,3006.6,3005.7,10.47253463]
[1768932956441,2.81933306,3006.6,3005.7,10.47253463]
[1768932956669,3.32594022,3006.7,3005.7,10.47253463]
[1768932956967,0.545,3006.5,3005.7,10.47253463]
[1768932957330,0.93209402,3006.5,3005.7,10.47253463]
[1768932959763,6.83874175,3006.5,3005.7,10.47253463]
[1768932959940,2.58048902,3006.4,3005.7,10.47253463]
[1768932960132,2.58048902,3006.4,3005.5,10.47253463]
[1768932960333,2.58048902,3006.4,3005.3,0.549]
[1768932960334,2.52256168,3006.1,3005.3,10.47453463]
[1768932960532,3.84299468,3006.0,3005.3,10.47453463]
[1768932961160,2.52256168,3005.9,3005.3,0.002]
[1768932961471,2.46517968,3005.7,3005.0,0.002]
[1768932961657,10.52531681,3006.0,3005.0,0.002]
[1768932961658,2.46517968,3005.5,3005.0,0.002]
[1768932961874,2.46517968,3005.5,3004.6,0.002]
[1768932961875,3.01017968,3005.4,3004.6,0.002]
[1768932962035,2.46317968,3005.2,3004.6,0.002]
[1768932962394,0.30101797,3005.3,3004.6,0.002]
[1768932963945,5.97918439,3005.3,3004.6,0.002]
[1768932964138,2.65164763,3005.3,3004.6,0.002]
[1768932964337,2.65164763,3005.3,3004.6,10.47453463]
[1768932964338,0.30101797,3005.3,3004.6,10.47453463]
[1768932964534,0.41734143,3005.2,3004.6,10.47453463]
[1768932964739,3.62847401,3005.3,3004.6,10.47453463]
[1768932965054,3.32745604,3005.3,3004.6,10.47453463]
[1768932966999,2.84032177,3005.4,3004.6,10.47453463]
[1768932967199,6.16767095,3005.4,3004.6,10.47453463]
[1768932967403,0.61676709,3005.3,3004.6,10.47453463]
[1768932968392,0.545,3005.4,3004.7,10.47253463]
[1768932969008,2.08017472,3005.3,3004.6,0.002]
[1768932969220,2.08017472,3005.3,3004.6,10.47453463]
[1768932970101,5.40769999,3005.3,3004.6,10.47453463]
[1768932970489,0.001,3005.0,3004.6,10.47453463]
[1768932970698,0.546,3005.0,3004.6,0.002]
[1768932970907,1.97633462,3004.8,3004.6,4.45e-06]
[1768932971408,2.52233462,3005.0,3004.6,4.45e-06]
[1768932971890,0.001,3005.0,3004.6,10.47253908]
[1768932972078,0.545,3004.9,3004.6,10.47253908]
[1768932972276,1.87469991,3006.0,3004.7,10.47253463]
[1768932972478,3.3265693,3006.1,3004.7,10.47253463]
[1768932972479,1.87469991,3005.8,3004.7,10.47253463]
[1768932973719,1.87469991,3005.8,3004.6,4.45e-06]
[1768932974718,1.77566568,3005.6,3004.6,4.45e-06]
[1768932975033,1.77566568,3005.4,3004.6,4.45e-06]
[1768932975187,0.546,3005.3,3004.6,4.45e-06]
[1768932975818,3.32701201,3005.7,3004.6,4.45e-06]
[1768932975995,0.546,3005.6,3004.6,4.45e-06]
[1768932976193,0.546,3005.6,3004.8,10.44282222]
[1768932976907,4.95739263,3006.4,3004.8,10.44282222]
[1768932977120,6.65247472,3006.4,3004.9,10.44282222]
[1768932977463,3.32623736,3006.4,3004.9,10.44282222]
[1768932977742,0.546,3006.3,3004.9,10.44282222]
[1768932977909,0.546,3006.3,3005.1,10.44282222]
[1768932978115,0.001,3006.7,3005.2,10.44282222]
[1768932978420,0.001,3006.7,3005.4,10.44282222]
[1768932978592,0.001,3006.7,3005.6,10.44282222]
[1768932978792,0.001,3006.7,3005.8,10.44282222]
[1768932979307,3.32485611,3007.7,3005.8,10.44282222]
[1768932979308,3.32513134,3007.4,3005.8,10.44282222]
[1768932979516,6.65030887,3007.4,3005.8,10.44282222]
[1768932979834,0.546,3007.3,3005.8,10.44282222]
[1768932979997,0.546,3007.3,3006.0,10.44282222]
[1768932980200,3.32479968,3007.7,3006.2,10.44282222]
[1768932980406,0.546,3007.6,3006.4,10.44282222]
[1768932981199,3.87091762,3007.6,3006.4,10.44282222]
[1768932982393,7.19583524,3007.6,3006.4,10.44282222]
[1768932982596,0.02122042,3007.5,3006.4,10.44282222]
[1768932982904,3.32513134,3007.4,3006.4,10.44282222]
[1768932983104,0.33463518,3007.3,3006.4,10.44282222]
[1768932983642,0.33563518,3007.3,3006.4,10.44282222]
[1768932984107,0.3568556,3007.3,3006.4,10.44282222]
[1768932984506,0.33563518,3007.3,3006.4,10.44282222]
[1768932984711,0.545,3007.2,3006.4,10.44282222]
[1768932985347,0.96557665,3007.2,3006.4,10.44282222]
[1768932985559,4.29097122,3007.2,3006.4,10.44282222]
[1768932986340,7.61636579,3007.2,3006.4,10.44282222]
[1768932986527,0.02122042,3007.1,3006.4,10.44282222]
[1768932986738,0.02122042,3007.1,3006.0,10.44282222]
[1768932986941,4.0893596,3007.0,3006.0,10.44282222]
[1768932987141,0.02122042,3006.9,3006.0,10.44282222]
[1768932987345,0.76375862,3007.0,3006.0,10.44282222]
[1768932987650,0.96557665,3007.2,3006.0,10.44282222]
[1768932987651,4.29099558,3007.2,3006.0,10.44282222]
[1768932988322,1.1226282,3007.1,3006.0,10.44282222]
[1768932988791,0.02122042,3007.1,3006.0,10.44282222]
[1768932988930,3.32568425,3006.9,3006.0,10.44282222]
[1768932989267,0.02122042,3006.8,3006.0,10.44282222]
[1768932989555,0.74297107,3006.8,3006.0,10.44282222]
[1768932989751,0.72175065,3006.8,3006.0,10.44282222]
[1768932991051,4.04761149,3006.8,3006.0,10.44282222]
[1768932991817,7.37347233,3006.8,3006.0,10.44282222]
[1768932992021,0.97977898,3006.7,3005.0,10.44282222]
[1768932992319,1.52477898,3006.6,3005.2,10.44282222]
[1768932993133,6.65225344,3006.5,3005.2,10.44282222]
[1768932993341,3.32612672,3006.5,3005.2,10.44282222]
[1768932994957,0.545,3006.4,3005.3,10.44282222]
[1768932995259,0.545,3006.4,3005.6,10.44282222]
[1768932995622,3.3256322,3007.0,3005.6,10.44282222]
[1768932995823,0.545,3006.9,3005.6,10.44282222]
[1768932996053,0.545,3006.9,3005.8,10.44282222]
[1768932996557,0.545,3006.9,3006.0,10.44282222]
[1768932999027,3.87068595,3006.9,3006.0,10.44282222]
[1768932999256,0.001,3007.3,3006.2,10.44282222]
[1768932999467,0.545,3007.5,3006.4,10.44282222]
[1768932999634,3.32615553,3008.2,3006.6,13.76876451]
[1768932999826,1.22143215,3008.1,3006.7,10.44282222]
[1768933000043,1.22143215,3007.9,3006.7,10.44282222]
[1768933001733,1.15379196,3007.6,3005.8,10.44282222]
[1768933001938,1.15379196,3007.4,3006.0,10.44282222]
[1768933002135,1.15379196,3007.2,3006.0,10.44282222]
[1768933003765,3.32546307,3007.1,3006.0,10.44282222]
[1768933004261,4.47919915,3007.2,3006.0,10.44282222]
[1768933004423,3.32540719,3007.2,3006.0,10.44282222]
[1768933004627,6.65081438,3007.2,3006.2,9.8945773]
[1768933004823,3.32540719,3007.2,3006.2,9.8945773]
[1768933005625,6.65081438,3007.2,3006.2,9.8945773]
[1768933007052,3.32535248,3007.2,3006.2,9.8945773]
[1768933007251,0.545,3007.1,3006.4,9.83701714]
[1768933008032,0.545,3007.0,3006.4,9.83701714]
[1768933008331,0.001,3006.8,3006.4,9.83701714]
[1768933009635,0.83912884,3006.8,3006.1,0.002]
[1768933009948,0.83812884,3006.7,3006.1,0.002]
[1768933010157,0.83812884,3006.7,3006.0,9.83701714]
[1768933010357,0.83812884,3006.7,3006.0,9.80799152]
[1768933010667,0.83812884,3006.7,3006.0,9.3483128]
[1768933010829,0.83812884,3006.7,3006.0,9.23626168]
[1768933011033,0.83812884,3006.7,3006.0,8.90130045]
[1768933011228,6.65203218,3006.6,3006.0,8.61433981]
[1768933011536,1.2940161,3006.5,3006.0,8.45227387]
[1768933011948,1.2940161,3006.5,3006.0,8.06123061]
[1768933012156,1.2940161,3006.5,3006.0,8.00317744]
[1768933012334,1.2940161,3006.5,3006.0,7.74129605]
[1768933012661,1.2940161,3006.5,3005.5,0.002]
[1768933012662,3.01515077,3006.4,3005.6,9.83701714]
[1768933012862,0.43091669,3006.3,3005.6,9.83701714]
[1768933013233,3.32645865,3006.2,3005.6,9.38799157]
[1768933013436,0.545,3006.1,3005.6,9.38799157]
[1768933015467,6.34141061,3006.4,3005.6,9.38799157]
[1768933015766,0.545,3006.0,3005.6,9.38799157]
[1768933015963,6.34141061,3006.4,3005.6,9.38799157]
[1768933015964,0.545,3005.9,3005.6,9.38799157]
[1768933016266,0.545,3005.8,3005.6,9.38799157]
[1768933016671,0.545,3005.7,3005.6,9.38799157]
[1768933017070,0.7490161,3006.5,3005.6,10.32699073]
[1768933017280,5.23393787,3006.7,3005.9,9.83701714]
[1768933017281,0.545,3006.4,3005.9,9.83701714]
[1768933017579,3.37554474,3007.7,3006.4,9.83701714]
[1768933017736,0.33248598,3007.7,3006.4,9.83701714]
[1768933017938,0.545,3007.6,3006.4,9.83701714]
[1768933019088,3.90306686,3007.6,3006.4,9.83701714]
[1768933019254,3.35806686,3007.4,3006.4,9.83701714]
[1768933019653,3.32625796,3008.2,3006.8,9.83701714]
[1768933019887,0.00190848,3008.2,3006.8,9.83701714]
[1768933020190,0.545,3008.1,3006.8,9.83701714]
[1768933020682,3.32394667,3008.0,3006.8,9.83701714]
[1768933020855,3.69414134,3007.9,3006.8,9.83701714]
[1768933021255,0.37019467,3007.9,3006.8,9.83701714]
[1768933021469,3.32615553,3008.2,3006.8,9.83701714]
[1768933021782,0.545,3008.1,3007.0,9.83701714]
[1768933022100,0.00190848,3008.2,3007.0,9.83701714]
[1768933022401,0.545,3008.1,3007.2,9.83701714]
[1768933022775,3.32619097,3008.2,3007.2,9.83701714]
[1768933022974,0.00190848,3008.2,3007.2,9.83701714]
[1768933023191,0.545,3008.1,3007.2,9.83701714]
[1768933025196,0.545,3008.0,3007.2,9.83701714]
[1768933025370,0.545,3008.0,3007.4,9.83701714]
[1768933025821,3.86948488,3008.0,3007.4,9.83701714]
[1768933026307,0.545,3008.0,3007.4,9.83701714]
[1768933026474,3.24417922,3008.2,3007.4,9.83701714]
[1768933026801,0.545,3008.1,3007.4,9.83701714]
[1768933026999,1.25634407,3008.1,3007.4,9.83701714]
[1768933027311,3.2108252,3008.0,3007.1,9.83701714]
[1768933027808,0.545,3007.9,3007.1,9.83701714]
[1768933028016,3.86961297,3007.9,3007.1,9.83701714]
[1768933028175,10.40505114,3007.9,3007.1,9.83701714]
[1768933028487,1.04050511,3007.8,3007.1,9.83701714]
[1768933029896,4.36524898,3007.8,3007.1,9.83701714]
[1768933030205,0.00190848,3008.2,3007.1,9.83701714]
[1768933030408,0.00190848,3008.2,3007.2,9.83701714]
[1768933030572,0.545,3008.1,3007.2,9.83701714]
[1768933030773,0.545,3008.0,3007.4,9.83701714]
[1768933030979,0.545,3007.9,3007.2,9.83701714]
[1768933031175,0.545,3007.9,3007.5,9.83701714]
[1768933031377,0.545,3008.0,3007.5,9.83701714]
[1768933033087,3.32374348,3008.7,3007.6,9.83701714]
[1768933033291,0.545,3008.6,3007.8,9.83701714]
[1768933033507,3.32374348,3008.7,3007.8,9.83701714]
[1768933033812,0.0176662,3009.0,3007.8,9.83701714]
[1768933034023,0.545,3008.7,3007.8,9.83701714]
[1768933034242,3.86869971,3008.7,3008.0,9.83701714]
[1768933034389,4.2084717,3008.6,3007.8,9.83701714]
[1768933034828,7.19239942,3008.7,3007.8,9.83701714]
[1768933035132,3.86869971,3008.7,3007.8,9.83701714]
[1768933035286,0.71923196,3008.6,3007.8,9.83701714]
[1768933035490,0.545,3008.6,3007.8,9.83701714]
[1768933035694,4.73306699,3008.6,3007.4,0.002]
[1768933036124,4.18806699,3008.4,3007.4,0.002]
[1768933037438,4.71315374,3008.3,3007.4,8.77938996]
[1768933038100,4.16815374,3008.1,3007.4,0.002]
[1768933038302,4.16815374,3007.9,3007.0,8.77938996]
[1768933038503,0.545,3007.8,3007.0,8.77938996]
[1768933039731,4.69387465,3007.8,3007.0,0.002]
[1768933039931,0.545,3007.7,3007.0,8.77938996]
[1768933040109,0.545,3007.6,3007.0,8.77938996]